fUST/lending_fUST_20260613
["ID","MTS","AMOUNT","RATE_DAILY","PERIOD"]
[424926964,1781280054000,-6654.0,0.0001,2]
[424927109,1781280632000,-4119.88328389,9.899e-05,2]
[424927110,1781280632000,-300.0,9.999e-05,2]
[424927108,1781280632000,-880.11671611,9.899e-05,2]
[424927113,1781280632000,-507.77883647,0.000115,2]
[424927112,1781280632000,-1987.95764963,0.0001,2]
[424927114,1781280632000,-402.8527391,0.000115,2]
[424927111,1781280632000,-6753.76832994,0.0001,2]
[424927148,1781280640000,-165.81,0.00023086,2]
[424927142,1781280640000,-162.11612562,0.00021001,5]
[424927144,1781280640000,-2103.67025179,0.00021967,2]
[424927145,1781280640000,-1519.24176664,0.00022043,2]
[424927141,1781280640000,-160.131,0.00020099,2]
[424927143,1781280640000,-266.0,0.00021425,4]
[424927138,1781280640000,-179.35500449,0.00019167,2]
[424927140,1781280640000,-190.22726229,0.00020099,2]
[424927139,1781280640000,-179.35500448,0.0001976,2]
[424927137,1781280640000,-1519.24176671,0.00019067,2]
[424927146,1781280640000,-195.38167578,0.00022713,2]
[424927147,1781280640000,-164.5905681,0.00022713,2]
[424927136,1781280640000,-15076.98624093,0.00018,2]
[424927133,1781280640000,-200.0,0.00015295,2]
[424927134,1781280640000,-200.0,0.0001603,2]
[424927131,1781280640000,-422.99174035,0.00013682,14]
[424927130,1781280640000,-3358.93228312,0.000115,2]
[424927132,1781280640000,-200.0,0.00014707,2]
[424927151,1781280640000,-157.74844491,0.00023592,2]
[424927150,1781280640000,-329.1811362,0.00023539,2]
[424927135,1781280640000,-203.0,0.00016766,2]
[424927159,1781280640000,-315.49688981,0.00024143,2]
[424927154,1781280640000,-586.14502733,0.00024089,2]
[424927173,1781280640000,-156.6,0.00024511,2]
[424927174,1781280640000,-156.6,0.00024511,2]
[424927171,1781280640000,-156.63,0.00024511,2]
[424927168,1781280640000,-169.04374752,0.00024511,2]
[424927181,1781280640000,-156.6,0.00024511,2]
[424927165,1781280640000,-166.55348189,0.00024456,2]
[424927167,1781280640000,-316.18116523,0.00024456,2]
[424927169,1781280640000,-473.24533472,0.00024511,2]
[424927177,1781280640000,-156.6,0.00024511,2]
[424927179,1781280640000,-156.6,0.00024511,2]
[424927166,1781280640000,-388.52829523,0.00024456,2]
[424927162,1781280640000,-781.5267031,0.00024456,2]
[424927164,1781280640000,-658.36227241,0.00024456,2]
[424927163,1781280640000,-361.9775049,0.00024456,2]
[424927161,1781280640000,-1541.75465978,0.00024237,6]
[424927158,1781280640000,-158.09058262,0.00024089,2]
[424927156,1781280640000,-493.7717043,0.00024089,2]
[424927160,1781280640000,-218.83381615,0.00024237,6]
[424927176,1781280640000,-156.6,0.00024511,2]
[424927149,1781280640000,-390.76335155,0.00023539,2]
[424927216,1781280641000,-151.0,0.000291,10]
[424927240,1781280641000,-500.0,0.00032876,2]
[424927230,1781280641000,-500.0,0.00032876,2]
[424927223,1781280641000,-151.0,0.000328,19]
[424927226,1781280641000,-500.0,0.00032876,2]
[424927222,1781280641000,-186.0,0.00032198,2]
[424927220,1781280641000,-172.825638,0.00031016,2]
[424927228,1781280641000,-500.0,0.00032876,2]
[424927227,1781280641000,-500.0,0.00032876,2]
[424927221,1781280641000,-151.0,0.000319,13]
[424927229,1781280641000,-500.0,0.00032876,2]
[424927225,1781280641000,-500.0,0.00032876,2]
[424927232,1781280641000,-500.0,0.00032876,2]
[424927243,1781280641000,-500.0,0.00032876,2]
[424927239,1781280641000,-500.0,0.00032876,2]
[424927231,1781280641000,-500.0,0.00032876,2]
[424927236,1781280641000,-500.0,0.00032876,2]
[424927237,1781280641000,-500.0,0.00032876,2]
[424927234,1781280641000,-500.0,0.00032876,2]
[424927235,1781280641000,-500.0,0.00032876,2]
[424927238,1781280641000,-500.0,0.00032876,2]
[424927241,1781280641000,-500.0,0.00032876,2]
[424927242,1781280641000,-500.0,0.00032876,2]
[424927248,1781280641000,-152.0,0.00034577,2]
[424927247,1781280641000,-152.0,0.00034508,2]
[424927219,1781280641000,-151.0,0.000309,14]
[424927233,1781280641000,-500.0,0.00032876,2]
[424927217,1781280641000,-172.825638,0.00029667,2]
[424927192,1781280641000,-151.0,0.00024658,6]
[424927215,1781280641000,-158.0,0.00028548,29]
[424927183,1781280641000,-156.6,0.00024511,2]
[424927186,1781280641000,-315.37859811,0.00024511,120]
[424927187,1781280641000,-157.68929905,0.00024511,120]
[424927189,1781280641000,-157.68929905,0.00024511,120]
[424927184,1781280641000,-315.37859811,0.00024511,120]
[424927191,1781280641000,-396.21899734,0.00024526,6]
[424927244,1781280641000,-498.5,0.00032876,2]
[424927194,1781280641000,-152.0,0.00024675,30]
[424927197,1781280641000,-976.90837888,0.00024879,2]
[424927200,1781280641000,-1519.24176664,0.00025019,2]
[424927196,1781280641000,-822.95284051,0.00024823,2]
[424927198,1781280641000,-152.0,0.00024912,30]
[424927199,1781280641000,-152.0,0.00024912,30]
[424927201,1781280641000,-152.0,0.00025075,30]
[424927210,1781280641000,-172.825638,0.00026971,2]
[424927212,1781280641000,-1519.24176664,0.00027995,2]
[424927211,1781280641000,-151.0,0.000272,16]
[424927204,1781280641000,-987.54340861,0.00025373,2]
[424927213,1781280641000,-151.0,0.000281,10]
[424927202,1781280641000,-151.0,0.000253,16]
[424927203,1781280641000,-842.4705758,0.00025342,2]
[424927214,1781280641000,-172.825638,0.00028319,2]
[424927205,1781280641000,-497066.9511,0.00025444,2]
[424927206,1781280641000,-207.56,0.00025444,2]
[424927209,1781280641000,-151.0,0.000262,19]
[424927207,1781280641000,-172.825638,0.00025623,2]
[424927208,1781280641000,-1152.13397671,0.00026198,2]
[424927218,1781280641000,-151.0,0.0003,17]
[424927245,1781280641000,-151.0,0.000338,14]
[424927264,1781280641000,-185.52692963,0.00034801,2]
[424927256,1781280641000,-151.0,0.00034717,7]
[424927273,1781280641000,-151.0,0.00035,7]
[424927276,1781280641000,-151.0,0.00035,7]
[424927275,1781280641000,-151.0,0.00035,7]
[424927285,1781280641000,-152.0,0.00035117,7]
[424927287,1781280641000,-152.0,0.00035117,7]
[424927289,1781280641000,-160.0,0.00035127,3]
[424927290,1781280641000,-152.0,0.00035142,7]
[424927288,1781280641000,-152.0,0.00035117,7]
[424927297,1781280641000,-151.0,0.00035429,7]
[424927294,1781280641000,-186.0,0.00035198,2]
[424927286,1781280641000,-152.0,0.00035117,7]
[424927291,1781280641000,-152.0,0.00035142,7]
[424927296,1781280641000,-234.144061,0.00035429,7]
[424927292,1781280641000,-152.0,0.00035142,7]
[424927295,1781280641000,-600.0,0.00035409,30]
[424927293,1781280641000,-152.0,0.00035167,7]
[424927310,1781280641000,-689.004865,0.00035429,7]
[424927309,1781280641000,-689.004865,0.00035429,7]
[424927298,1781280641000,-151.0,0.00035429,7]
[424927305,1781280641000,-2620.96253905,0.00035429,7]
[424927306,1781280641000,-2620.96253905,0.00035429,7]
[424927308,1781280641000,-689.004865,0.00035429,7]
[424927300,1781280641000,-151.0,0.00035429,7]
[424927302,1781280641000,-153.826193,0.00035429,7]
[424927304,1781280641000,-151.0,0.00035429,7]
[424927303,1781280641000,-151.0,0.00035429,7]
[424927307,1781280641000,-689.004865,0.00035429,7]
[424927274,1781280641000,-151.0,0.00035,7]
[424927246,1781280641000,-214.04026294,0.00034357,7]
[424927283,1781280641000,-689.004865,0.00035,7]
[424927280,1781280641000,-689.004865,0.00035,7]
[424927257,1781280641000,-151.0,0.00034717,7]
[424927249,1781280641000,-163.3571727,0.000347,120]
[424927259,1781280641000,-151.0,0.00034717,7]
[424927258,1781280641000,-151.0,0.00034717,7]
[424927250,1781280641000,-550.0,0.00034715,2]
[424927251,1781280641000,-320.0,0.00034715,2]
[424927252,1781280641000,-210.0,0.00034715,2]
[424927253,1781280641000,-151.0,0.00034716,7]
[424927255,1781280641000,-151.0,0.00034716,7]
[424927254,1781280641000,-151.0,0.00034716,7]
[424927260,1781280641000,-151.0,0.00034717,7]
[424927263,1781280641000,-152.0,0.00034775,2]
[424927265,1781280641000,-335.91377846,0.00034801,2]
[424927279,1781280641000,-151.0,0.00035,7]
[424927261,1781280641000,-151.0,0.00034717,7]
[424927262,1781280641000,-297.752683,0.00034717,7]
[424927269,1781280641000,-162.9955004,0.00035,7]
[424927268,1781280641000,-80324.21193813,0.00035,7]
[424927270,1781280641000,-151.0,0.00035,7]
[424927267,1781280641000,-152.0,0.00034861,2]
[424927271,1781280641000,-151.0,0.00035,7]
[424927277,1781280641000,-151.0,0.00035,7]
[424927278,1781280641000,-196.0,0.00035,7]
[424927282,1781280641000,-689.004865,0.00035,7]
[424927281,1781280641000,-689.004865,0.00035,7]
[424927272,1781280641000,-151.0,0.00035,7]
[424927284,1781280641000,-152.0,0.00035014,7]
[424927266,1781280641000,-466.82033051,0.00034801,2]
[424927312,1781280642000,-135690.03738837,0.0003543,30]
[424927311,1781280642000,-789618.56123195,0.0003543,30]
[424927313,1781280642000,-1560.0,0.0003543,30]
[424927314,1781280642000,-1154.17199851,0.00011385,2]
[424927315,1781280642000,-3845.82800149,0.00011385,2]
[424927316,1781280642000,-1519.24176664,0.00030972,2]
[424927317,1781280642000,-8634.69543725,0.0003543,30]
[424927340,1781280646000,-9258.32978138,0.0003543,30]
[424927339,1781280646000,-1519.24176664,0.00033948,2]
[424927343,1781280647000,-564.34462372,0.0003543,30]
[424927342,1781280647000,-421.68194635,0.0003543,30]
[424927344,1781280647000,-3882.48,0.0003543,30]
[424927341,1781280647000,-3169.10732,0.0003543,30]
[424927347,1781280859000,5000.0,0.00024658,30]
[424927349,1781280882000,5000.0,0.00024658,30]
[424927351,1781280904000,327.77591813,0.00024658,30]
[424927502,1781281834000,-186.99453402,0.00024874,6]
[424927506,1781281834000,-167.0,0.00029271,14]
[424927504,1781281834000,-152.0,0.00024912,30]
[424927499,1781281834000,-152.0,0.00024668,30]
[424927503,1781281834000,-152.0,0.00024912,30]
[424927497,1781281834000,-165.95835675,0.00024144,2]
[424927494,1781281834000,-240.35987896,9.997e-05,7]
[424927496,1781281834000,-182.7,0.00023141,2]
[424927500,1781281834000,-152.0,0.00024863,30]
[424927501,1781281834000,-152.0,0.00024863,30]
[424927495,1781281834000,-421.68194636,0.00013233,14]
[424927505,1781281834000,-167.0,0.00029,14]
[424927498,1781281834000,-331.9167135,0.00024511,2]
[424927513,1781281834000,-152.0,0.00034035,2]
[424927511,1781281834000,-152.0,0.00033967,2]
[424927510,1781281834000,-163.602384,0.00033015,2]
[424927522,1781281834000,-470.17082777,0.00034801,2]
[424927519,1781281834000,-76.23017329,0.00034801,2]
[424927521,1781281834000,-113.63091522,0.00034801,2]
[424927517,1781281834000,-298.18348052,0.00034801,2]
[424927520,1781281834000,-726.6456797,0.00034801,2]
[424927507,1781281834000,-167.0,0.00030447,14]
[424927518,1781281834000,-264.21016618,0.00034801,2]
[424927515,1781281834000,-340.76575744,0.00034801,2]
[424927514,1781281834000,-186.0,0.00034718,2]
[424927508,1781281834000,-188.4403348,0.00031317,2]
[424927509,1781281834000,-172.0,0.00031969,14]
[424927512,1781281834000,-152.0,0.00034035,2]
[424927516,1781281834000,-43.13570366,0.00034801,2]
[424927564,1781281839000,-164.65,0.00035226,41]
[424927566,1781281839000,-595.33859756,0.00035227,7]
[424927568,1781281839000,-363.97071921,0.00035227,7]
[424927561,1781281839000,-152.0,0.00035117,7]
[424927560,1781281839000,-129.07535916,0.00034801,2]
[424927562,1781281839000,-786.3058707,0.00035128,7]
[424927563,1781281839000,-152.0,0.00035142,7]
[424927569,1781281839000,-136.02928079,0.00035227,7]
[424927572,1781281840000,-413.7003457,0.00035227,7]
[424927574,1781281840000,-449.12679485,0.00035227,7]
[424927573,1781281840000,-500.0,0.00035227,7]
[424927571,1781281840000,-500.0,0.00035227,7]
[424927570,1781281840000,-500.0,0.00035227,7]
[424927604,1781281843000,-500.0,0.00035227,7]
[424927600,1781281843000,-500.0,0.00035227,7]
[424927602,1781281843000,-500.0,0.00035227,7]
[424927608,1781281843000,-500.0,0.00035227,7]
[424927603,1781281843000,-500.0,0.00035227,7]
[424927609,1781281843000,-500.0,0.00035227,7]
[424927598,1781281843000,-500.0,0.00035227,7]
[424927599,1781281843000,-500.0,0.00035227,7]
[424927607,1781281843000,-500.0,0.00035227,7]
[424927597,1781281843000,-500.0,0.00035227,7]
[424927596,1781281843000,-500.0,0.00035227,7]
[424927595,1781281843000,-50.87320515,0.00035227,7]
[424927606,1781281843000,-500.0,0.00035227,7]
[424927605,1781281843000,-500.0,0.00035227,7]
[424927610,1781281843000,-500.0,0.00035227,7]
[424927617,1781281843000,-500.0,0.00035227,7]
[424927622,1781281843000,-500.0,0.00035227,7]
[424927621,1781281843000,-367.57508119,0.00035227,7]
[424927623,1781281843000,-500.0,0.00035227,7]
[424927624,1781281843000,-318.51144165,0.00035227,7]
[424927620,1781281843000,-500.0,0.00035227,7]
[424927601,1781281843000,-500.0,0.00035227,7]
[424927618,1781281843000,-500.0,0.00035227,7]
[424927614,1781281843000,-289.19624545,0.00035227,7]
[424927615,1781281843000,-210.80375455,0.00035227,7]
[424927613,1781281843000,-500.0,0.00035227,7]
[424927616,1781281843000,-500.0,0.00035227,7]
[424927612,1781281843000,-500.0,0.00035227,7]
[424927611,1781281843000,-500.0,0.00035227,7]
[424927619,1781281843000,-500.0,0.00035227,7]
[424927630,1781281846000,-152.0,0.00024863,30]
[424927631,1781281846000,-152.0,0.00024912,30]
[424927635,1781281846000,-4953.35088858,0.00035228,2]
[424927634,1781281846000,-181.48855835,0.00035227,7]
[424927632,1781281846000,-152.0,0.00033564,2]
[424927633,1781281846000,-152.0,0.00033564,2]
[424927637,1781281927000,-201.0,0.00018685,3]
[424927638,1781281982000,-152.0,0.00024668,30]
[424927639,1781281999000,-152.0,0.00024668,30]
[424927640,1781282015000,-158.0,0.00027452,24]
[424927807,1781283031000,-158.0,0.00017589,3]
[424927808,1781283031000,-152.0,0.00024668,30]
[424927813,1781283032000,-212.03077672,0.00031408,2]
[424927810,1781283032000,-98.80968326,0.00024863,30]
[424927809,1781283032000,-151.0,0.00024668,6]
[424927811,1781283032000,-53.19031674,0.00024863,30]
[424927814,1781283032000,-167.0,0.00031644,14]
[424927816,1781283032000,-152.0,0.00033611,2]
[424927817,1781283032000,-152.0,0.00033611,2]
[424927818,1781283032000,-5998.09954512,0.000347,2]
[424927812,1781283032000,-167.0,0.0003,14]
[424927815,1781283032000,-1493.82505763,0.00033061,2]
[424927836,1781283038000,-58204.73270074,0.000347,2]
[424927837,1781283038000,-8695.3136083,0.000347,2]
[424927840,1781283038000,-3702.15618065,0.000347,2]
[424927838,1781283038000,-11285.35953066,0.000347,2]
[424927839,1781283038000,-17682.94880536,0.000347,2]
[424928142,1781283043000,-20078.5378285,0.000347,2]
[424928349,1781283247000,5000.0,0.00024658,30]
[424928360,1781283653000,-1056.90563718,0.000115,2]
[424928576,1781284238000,-188307.26252464,0.00034,7]
[424928575,1781284238000,-322.005,0.00032296,120]
[424928574,1781284238000,-186.0,0.00032291,2]
[424928573,1781284238000,-1000.0,0.00031956,30]
[424928564,1781284238000,-156.0,0.00024568,2]
[424928568,1781284238000,-156.28,0.00028159,2]
[424928571,1781284238000,-527.99847832,0.00030858,6]
[424928572,1781284238000,-192.273618,0.00031128,60]
[424928567,1781284238000,-164.0099867,0.00025437,2]
[424928570,1781284238000,-4276.8724628,0.00029732,2]
[424928565,1781284238000,-152.0,0.00024668,30]
[424928566,1781284238000,-152.0,0.00024863,30]
[424928569,1781284238000,-330.96679053,0.00028742,2]
[424928579,1781284241000,-304.0,0.00034,7]
[424928580,1781284241000,-289.79628313,0.00034,7]
[424929033,1781284439000,2619.35583362,0.00024658,30]
[424929034,1781284448000,451.39504865,0.00024658,30]
[424929042,1781284805000,1000.0,0.00022713,30]
[424929055,1781285432000,-211.5767066,0.00015041,2]
[424929061,1781285432000,-183.09708737,0.00015627,2]
[424929058,1781285432000,-423.1534132,0.00015393,2]
[424929056,1781285432000,-156.64834168,0.00015393,2]
[424929059,1781285432000,-227.34249114,0.00015393,2]
[424929060,1781285432000,-313.29668335,0.00015627,2]
[424929063,1781285432000,-188.16479988,0.00015627,2]
[424929062,1781285432000,-203.55819707,0.00015627,2]
[424929064,1781285432000,-399.93426658,0.00015627,2]
[424929057,1781285432000,-199.96713329,0.00015393,2]
[424929072,1781285432000,-1296.66822468,0.00022282,2]
[424929066,1781285432000,-157.21241247,0.00015627,2]
[424929075,1781285432000,-77.61570361,0.00022662,2]
[424929069,1781285432000,-171.80124643,0.00015627,2]
[424929073,1781285432000,-177.10692239,0.00022282,2]
[424929074,1781285432000,-384.174884,0.00022286,2]
[424929065,1781285432000,-202.43923738,0.00015627,2]
[424929068,1781285432000,-454.68498228,0.00015627,2]
[424929071,1781285432000,-7170.85009103,0.00022282,2]
[424929067,1781285432000,-634.7301198,0.00015627,2]
[424929070,1781285432000,-172.07,0.00016438,2]
[424929079,1781285438000,-192.273618,0.00022787,2]
[424929087,1781285438000,-500.0,0.00022973,2]
[424929085,1781285438000,-500.0,0.00022973,2]
[424929080,1781285438000,-153.94417986,0.00022837,2]
[424929086,1781285438000,-500.0,0.00022973,2]
[424929076,1781285438000,-222.38429639,0.00022662,2]
[424929082,1781285438000,-500.0,0.00022973,2]
[424929084,1781285438000,-288.96289384,0.00022973,2]
[424929083,1781285438000,-500.0,0.00022973,2]
[424929081,1781285438000,-152.5504793,0.00022837,2]
[424929077,1781285438000,-15361.1216665,0.00022663,2]
[424929091,1781285438000,-478.84802348,0.00022973,2]
[424929078,1781285438000,-199.388035,0.00022692,2]
[424929090,1781285438000,-500.0,0.00022973,2]
[424929088,1781285438000,-500.0,0.00022973,2]
[424929089,1781285438000,-500.0,0.00022973,2]
[424929093,1781285438000,-500.0,0.00022973,2]
[424929100,1781285438000,-500.0,0.00022973,2]
[424929104,1781285438000,-500.0,0.00022973,2]
[424929103,1781285438000,-500.0,0.00022973,2]
[424929102,1781285438000,-500.0,0.00022973,2]
[424929099,1781285438000,-500.0,0.00022973,2]
[424929105,1781285438000,-500.0,0.00022973,2]
[424929101,1781285438000,-500.0,0.00022973,2]
[424929096,1781285438000,-500.0,0.00022973,2]
[424929095,1781285438000,-500.0,0.00022973,2]
[424929097,1781285438000,-500.0,0.00022973,2]
[424929094,1781285438000,-628.34405576,0.00022973,2]
[424929092,1781285438000,-500.0,0.00022973,2]
[424929106,1781285438000,-500.0,0.00022973,2]
[424929098,1781285438000,-500.0,0.00022973,2]
[424929111,1781285439000,-500.0,0.00022973,2]
[424929110,1781285439000,-500.0,0.00022973,2]
[424929107,1781285439000,-500.0,0.00022973,2]
[424929109,1781285439000,-434.70177723,0.00022973,2]
[424929108,1781285439000,-500.0,0.00022973,2]
[424929122,1781285439000,-191.3109595,0.00022975,2]
[424929121,1781285439000,-152.09103632,0.00022975,2]
[424929112,1781285439000,-500.0,0.00022973,2]
[424929114,1781285439000,-500.0,0.00022973,2]
[424929113,1781285439000,-500.0,0.00022973,2]
[424929119,1781285439000,-34.33154411,0.00022975,2]
[424929117,1781285439000,-163.73358454,0.00022975,2]
[424929118,1781285439000,-186.1133675,0.00022975,2]
[424929120,1781285439000,-125.11468328,0.00022975,2]
[424929115,1781285439000,-160.07002527,0.00022975,2]
[424929123,1781285439000,-184.19775159,0.00022975,2]
[424929124,1781285439000,-218.75503877,0.00022975,2]
[424929126,1781285439000,-14.82393512,0.00022975,2]
[424929125,1781285439000,-154.03852876,0.00022975,2]
[424929116,1781285439000,-162.02206302,0.00022975,2]
[424929169,1781285441000,-300.0,0.00023434,10]
[424929164,1781285441000,-300.0,0.00023434,10]
[424929161,1781285441000,-151.0,0.00023419,2]
[424929163,1781285441000,-300.0,0.00023434,10]
[424929157,1781285441000,-1521.42924281,0.00023419,2]
[424929165,1781285441000,-300.0,0.00023434,10]
[424929162,1781285441000,-151.0,0.00023419,2]
[424929158,1781285441000,-1975.0405541,0.00023419,2]
[424929167,1781285441000,-300.0,0.00023434,10]
[424929151,1781285441000,-1521.42924281,0.00023419,2]
[424929159,1781285441000,-1975.0405541,0.00023419,2]
[424929166,1781285441000,-300.0,0.00023434,10]
[424929174,1781285441000,-300.0,0.00023434,10]
[424929171,1781285441000,-300.0,0.00023434,10]
[424929176,1781285441000,-300.0,0.00023434,10]
[424929173,1781285441000,-300.0,0.00023434,10]
[424929175,1781285441000,-300.0,0.00023434,10]
[424929172,1781285441000,-300.0,0.00023434,10]
[424929182,1781285441000,-307.88835972,0.00023667,2]
[424929179,1781285441000,-187.69861651,0.00023667,2]
[424929177,1781285441000,-300.0,0.00023434,10]
[424929178,1781285441000,-264.27,0.00023562,2]
[424929183,1781285441000,-194.74077102,0.00023667,2]
[424929154,1781285441000,-1521.42924281,0.00023419,2]
[424929168,1781285441000,-300.0,0.00023434,10]
[424929152,1781285441000,-1521.42924281,0.00023419,2]
[424929143,1781285441000,-1468.04576062,0.00023419,2]
[424929149,1781285441000,-1521.42924281,0.00023419,2]
[424929127,1781285441000,-164.59016055,0.00022975,2]
[424929130,1781285441000,-154.421491,0.0002332,2]
[424929128,1781285441000,-150.42219562,0.00022975,2]
[424929131,1781285441000,-151.0,0.0002332,2]
[424929129,1781285441000,-100011.79905078,0.0002332,8]
[424929132,1781285441000,-151.0,0.0002332,2]
[424929134,1781285441000,-1468.04576062,0.00023419,2]
[424929135,1781285441000,-1468.04576062,0.00023419,2]
[424929138,1781285441000,-1468.04576062,0.00023419,2]
[424929184,1781285441000,-186.68670463,0.00023667,2]
[424929139,1781285441000,-1468.04576062,0.00023419,2]
[424929133,1781285441000,-1879.40263948,0.00023334,2]
[424929136,1781285441000,-1468.04576062,0.00023419,2]
[424929142,1781285441000,-1468.04576062,0.00023419,2]
[424929137,1781285441000,-1468.04576062,0.00023419,2]
[424929141,1781285441000,-1468.04576062,0.00023419,2]
[424929140,1781285441000,-1468.04576062,0.00023419,2]
[424929145,1781285441000,-1468.04576062,0.00023419,2]
[424929146,1781285441000,-1468.04576062,0.00023419,2]
[424929155,1781285441000,-1521.42924281,0.00023419,2]
[424929150,1781285441000,-1521.42924281,0.00023419,2]
[424929144,1781285441000,-1468.04576062,0.00023419,2]
[424929147,1781285441000,-1468.04576062,0.00023419,2]
[424929148,1781285441000,-1468.04576062,0.00023419,2]
[424929156,1781285441000,-1521.42924281,0.00023419,2]
[424929153,1781285441000,-1521.42924281,0.00023419,2]
[424929180,1781285441000,-178.30810605,0.00023667,2]
[424929170,1781285441000,-300.0,0.00023434,10]
[424929186,1781285441000,-191.16749407,0.00023667,2]
[424929226,1781285441000,-218.590137,0.00024079,2]
[424929230,1781285441000,-218.590137,0.0002408,2]
[424929225,1781285441000,-218.590137,0.00024079,2]
[424929228,1781285441000,-218.590137,0.0002408,2]
[424929220,1781285441000,-218.590137,0.00024079,2]
[424929222,1781285441000,-218.590137,0.00024079,2]
[424929231,1781285441000,-218.590137,0.0002408,2]
[424929221,1781285441000,-218.590137,0.00024079,2]
[424929211,1781285441000,-207.87943778,0.00023805,2]
[424929223,1781285441000,-218.590137,0.00024079,2]
[424929229,1781285441000,-218.590137,0.0002408,2]
[424929232,1781285441000,-338.04,0.0002409,3]
[424929234,1781285441000,-507.11,0.0002409,3]
[424929224,1781285441000,-218.590137,0.00024079,2]
[424929216,1781285441000,-384.174884,0.00023846,2]
[424929214,1781285441000,-264.27,0.00023836,2]
[424929219,1781285441000,-189.93628803,0.0002401,5]
[424929233,1781285441000,-169.02,0.0002409,3]
[424929215,1781285441000,-1879.40263947,0.00023841,2]
[424929235,1781285441000,-269.046047,0.00024099,2]
[424929237,1781285441000,-269.046047,0.00024099,2]
[424929238,1781285441000,-269.046047,0.00024099,2]
[424929239,1781285441000,-269.046047,0.00024099,2]
[424929236,1781285441000,-269.046047,0.00024099,2]
[424929181,1781285441000,-159.30909036,0.00023667,2]
[424929240,1781285441000,-269.046047,0.00024099,2]
[424929213,1781285441000,-300.84439124,0.00023805,2]
[424929217,1781285441000,-600.0,0.00023902,10]
[424929227,1781285441000,-218.590137,0.00024079,2]
[424929212,1781285441000,-358.82819133,0.00023805,2]
[424929187,1781285441000,-180.92455275,0.00023667,2]
[424929185,1781285441000,-179.91991198,0.00023667,2]
[424929218,1781285441000,-177.978,0.0002401,5]
[424929188,1781285441000,-199.11420604,0.00023667,2]
[424929195,1781285441000,-151.0,0.00023805,2]
[424929197,1781285441000,-324.04412605,0.00023805,2]
[424929193,1781285441000,-305.1009586,0.00023667,2]
[424929192,1781285441000,-191.1463476,0.00023667,2]
[424929196,1781285441000,-191.58247845,0.00023805,2]
[424929190,1781285441000,-153.6725138,0.00023667,2]
[424929191,1781285441000,-167.33600325,0.00023667,2]
[424929194,1781285441000,-150.22206305,0.00023703,2]
[424929200,1781285441000,-217.53429766,0.00023805,2]
[424929189,1781285441000,-154.67130856,0.00023667,2]
[424929205,1781285441000,-197.57671184,0.00023805,2]
[424929207,1781285441000,-382.62191901,0.00023805,2]
[424929208,1781285441000,-368.39550317,0.00023805,2]
[424929199,1781285441000,-327.46716908,0.00023805,2]
[424929204,1781285441000,-304.18207264,0.00023805,2]
[424929209,1781285441000,-437.51007754,0.00023805,2]
[424929203,1781285441000,-166.89037376,0.00023805,2]
[424929198,1781285441000,-320.14005054,0.00023805,2]
[424929202,1781285441000,-318.89245477,0.00023805,2]
[424929201,1781285441000,-372.226735,0.00023805,2]
[424929206,1781285441000,-160.07660394,0.00023805,2]
[424929210,1781285441000,-308.07705753,0.00023805,2]
[424929280,1781285442000,-375.39723302,0.0002422,2]
[424929279,1781285442000,-11655.09,0.00024219,2]
[424929276,1781285442000,-264.27,0.0002411,2]
[424929277,1781285442000,-500.0,0.00024219,2]
[424929284,1781285442000,-389.48154204,0.0002422,2]
[424929275,1781285442000,-269.046047,0.000241,2]
[424929287,1781285442000,-373.37340927,0.0002422,2]
[424929274,1781285442000,-269.046047,0.000241,2]